fUSD/lending_fUSD_20250724
["ID","MTS","AMOUNT","RATE_DAILY","PERIOD"]
[374642594,1753395060797,-583.55,0.00032824,10]
[374642596,1753395060806,-583.55,0.00032824,10]
[374642598,1753395060816,-583.55,0.00032824,10]
[374642600,1753395060828,-578.0447011,0.00032824,10]
[374642602,1753395060839,-5.5052989,0.00032824,10]
[374642604,1753395060849,-430.56030075,0.00032824,10]
[374642606,1753395060862,-152.98969925,0.00032824,10]
[374642608,1753395060872,-583.78472482,0.00032824,10]
[374642610,1753395060881,-1020.97471172,0.00032825,30]
[374642699,1753395061918,-400.0,0.00032499,10]
[374642701,1753395061928,-400.0,0.00032814,10]
[374642703,1753395061937,-6005.7446574,0.00032824,17]
[374642705,1753395061948,-500.0,0.00032824,17]
[374642707,1753395061963,-400.0,0.00032814,10]
[374642710,1753395061973,-269269.89931557,0.00032824,17]
[374642712,1753395061985,-593.45,0.00032824,17]
[374642714,1753395061996,-600.86929527,0.00032824,17]
[374642716,1753395062006,-12329.88312145,0.00032824,17]
[374642718,1753395062018,-10213.61371178,0.00032824,17]
[374642720,1753395062029,-523.8445005,0.00032824,17]
[374643392,1753395139323,261.0,0.0002541,120]
[374643393,1753395139353,261.0,0.00026204,120]
[374643394,1753395178899,335.55356121,0.00024902,120]
[374643395,1753395208062,242.43744798,0.00024404,120]
[374643396,1753395218790,206.07183078,0.00024404,120]
[374643405,1753395559104,-469.2233339,0.00025,2]
[374643426,1753395604271,261.0,0.00025704,120]
[374643456,1753395652237,-150.0,0.00022,2]
[374643469,1753395677510,159.78,0.00013699,2]
[374643490,1753395722869,261.0,0.00025204,120]
[374643491,1753395722935,261.0,0.0002645,120]
[374643541,1753395832205,-150.0,0.00021916,2]
[374643562,1753395907558,63798.02205146,0.00019,2]
[374643563,1753395907619,56092.84328718,0.00019,2]
[374643592,1753396115682,67973.999999,0.000151,2]
[374643683,1753396232705,-150.0,0.00022,2]
[374643684,1753396232714,-157.22734322,0.000241,2]
[374643685,1753396232729,-343.48868899,0.000241,2]
[374643686,1753396232738,-346.79,0.00024662,2]
[374643687,1753396232748,-261.0,0.00024736,2]
[374643688,1753396232757,-300.0,0.00024984,2]
[374643689,1753396232766,-300.0,0.00024984,2]
[374643690,1753396232777,-1200.0,0.00024984,2]
[374643691,1753396232787,-151.0,0.00024985,2]
[374643692,1753396232798,-151.0,0.00024985,2]
[374643693,1753396232808,-151.0,0.00024985,2]
[374643694,1753396232818,-151.0,0.00024985,2]
[374643695,1753396232829,-151.0,0.00024985,2]
[374643696,1753396232839,-151.0,0.00024985,2]
[374643697,1753396232850,-151.0,0.00024985,2]
[374643698,1753396232860,-151.0,0.00024985,2]
[374643699,1753396232871,-151.0,0.00024985,2]
[374643700,1753396232882,-151.0,0.00024985,2]
[374643701,1753396232892,-151.0,0.00024985,2]
[374643702,1753396232902,-151.0,0.00024985,2]
[374643703,1753396232914,-151.0,0.00024985,2]
[374643704,1753396232925,-151.0,0.00024985,2]
[374643705,1753396232934,-151.0,0.00024985,2]
[374643706,1753396232944,-151.0,0.00024985,2]
[374643707,1753396232953,-156.587,0.00024985,2]
[374643708,1753396232963,-4530.7766661,0.00025,2]
[374643709,1753396232974,-261.0,0.00025349,2]
[374643710,1753396232983,-5511.0,0.000254,5]
[374643711,1753396232993,-261.0,0.00025498,2]
[374643712,1753396233002,-261.0,0.00025498,2]
[374643713,1753396233012,-261.0,0.00025498,2]
[374643714,1753396233022,-184.0,0.00025599,2]
[374643715,1753396233031,-242.44114656,0.000259,14]
[374643716,1753396233042,-380.04455844,0.00026,2]
[374643717,1753396233051,-346.79,0.00026393,2]
[374643718,1753396233061,-853.38602645,0.00026983,2]
[374643719,1753396233072,-853.38602645,0.0002702,2]
[374643720,1753396233081,-853.38602645,0.00027026,2]
[374643721,1753396233091,-420.0,0.00027066,2]
[374643722,1753396233101,-853.38602645,0.00027082,2]
[374643723,1753396233112,-1680.0,0.00027189,2]
[374643724,1753396233121,-175.02,0.00027352,2]
[374643725,1753396233131,-500.0,0.00027788,2]
[374643726,1753396233141,-528.59812329,0.00027788,2]
[374643727,1753396233151,-500.0,0.00027788,2]
[374643728,1753396233160,-185.73208219,0.00027788,2]
[374643729,1753396233171,-600.0,0.00027789,2]
[374643730,1753396233180,-265.87,0.00027789,2]
[374643731,1753396233190,-346.79,0.00028123,2]
[374643732,1753396233200,-1280.94,0.00029002,2]
[374643733,1753396233210,-1334.98,0.00029002,2]
[374643734,1753396233219,-296.82,0.0002903,30]
[374643735,1753396233229,-587.0,0.00029322,2]
[374643736,1753396233239,-150.0,0.00029416,7]
[374643737,1753396233248,-150.0,0.00029416,7]
[374643738,1753396233258,-150.0,0.00029416,7]
[374643739,1753396233270,-154.20834801,0.00029416,7]
[374643740,1753396233281,-150.0,0.00029416,7]
[374643741,1753396233292,-150.0,0.00029416,7]
[374643742,1753396233302,-150.0,0.00029416,7]
[374643743,1753396233311,-734.51,0.00029451,23]
[374643744,1753396233322,-165.76,0.00029553,2]
[374643745,1753396233331,-1920.0,0.00029588,2]
[374643746,1753396233341,-499.41,0.00029806,2]
[374643747,1753396233352,-510.0,0.00029845,2]
[374643748,1753396233363,-346.79,0.00029853,2]
[374643749,1753396233373,-491.63,0.0003042,2]
[374643750,1753396233383,-180.0,0.00030512,7]
[374643751,1753396233393,-1000.0,0.00030532,2]
[374643752,1753396233403,-200.0,0.00030808,2]
[374643753,1753396233413,-204.34,0.0003084,2]
[374643754,1753396233423,-329.75,0.00030854,2]
[374643755,1753396233433,-250.0,0.00030953,2]
[374643756,1753396233443,-165.16,0.00031017,2]
[374643757,1753396233454,-153.71,0.00031132,2]
[374643758,1753396233464,-499.41,0.00031297,2]
[374643759,1753396233474,-159.78,0.00031311,2]
[374643760,1753396233483,-346.79,0.00031584,2]
[374643761,1753396233493,-2200.0,0.000316,11]
[374643762,1753396233503,-231.28369723,0.00031661,2]
[374643763,1753396233512,-610.4219416,0.00031661,2]
[374643764,1753396233521,-1455.78310444,0.00031661,2]
[374643765,1753396233534,-1645.97670512,0.00031661,2]
[374643766,1753396233546,-1534.8236989,0.00031661,2]
[374643767,1753396233625,-1119.01910016,0.00031661,2]
[374643768,1753396233636,-3461.25339138,0.00031661,2]
[374643769,1753396233646,-160.0,0.00031661,2]
[374643770,1753396233656,-346.92554585,0.00031661,2]
[374643771,1753396233666,-394.24925288,0.000317,11]
[374643772,1753396233705,-2174.40851583,0.000317,11]
[374643773,1753396233717,-1428.45399867,0.000317,11]
[374643774,1753396233729,-402.88823262,0.000317,11]
[374643775,1753396233740,-233.17,0.00031718,2]
[374643776,1753396233750,-233.17,0.00031735,2]
[374643777,1753396233760,-107.5154526,0.00031751,2]
[374643778,1753396233772,-125.6545474,0.00031751,2]
[374643779,1753396233782,-823.0,0.00031767,2]
[374643780,1753396233792,-233.17,0.00031768,2]
[374643781,1753396233803,-133.18472742,0.00031785,2]
[374643782,1753396233815,-99.98527258,0.00031785,2]
[374643783,1753396233825,-815.08315356,0.000318,11]
[374643784,1753396233860,-3007.81857004,0.000318,11]
[374643785,1753396233877,-2877.0982764,0.000318,11]
[374643786,1753396233886,-233.17,0.00031802,2]
[374643787,1753396233896,-233.17,0.00031818,2]
[374643788,1753396233906,-151.57,0.00031827,2]
[374643789,1753396233915,-233.17,0.00031835,2]
[374643790,1753396233924,-1006.14417186,0.0003184,30]
[374643791,1753396233936,-245.15234214,0.0003184,30]
[374643792,1753396233946,-167.99,0.00031843,2]
[374643793,1753396233955,-233.17,0.00031852,2]
[374643794,1753396233965,-233.17,0.00031868,2]
[374643795,1753396233974,-233.17,0.00031885,2]
[374643796,1753396233984,-8900.0,0.000319,11]
[374643797,1753396233994,-233.17,0.00031902,2]
[374643798,1753396234003,-233.17,0.00031918,2]
[374643799,1753396234013,-233.17,0.00031935,2]
[374643800,1753396234023,-463.61,0.00031941,2]
[374643801,1753396234033,-233.17,0.00031952,2]
[374643802,1753396234043,-233.17,0.00031968,2]
[374643803,1753396234052,-233.17,0.00031985,2]
[374643804,1753396234062,-204.34,0.00031996,2]
[374643805,1753396234072,-7011.21848267,0.00032,3]
[374643806,1753396234082,-233.17,0.00032002,2]
[374643807,1753396234092,-600.0,0.00032014,7]
[374643808,1753396234102,-500.0,0.00032014,7]
[374643809,1753396234112,-233.17,0.00032018,2]
[374643810,1753396234122,-233.17,0.00032035,2]
[374643811,1753396234131,-357.41,0.00032078,2]
[374643812,1753396234141,-2352.42,0.00032078,2]
[374643813,1753396234150,-841.0,0.00032127,2]
[374643814,1753396234160,-510.0,0.00032165,6]
[374643815,1753396234169,-3290.4086,0.00032199,2]
[374643816,1753396234179,-776.1447,0.00032199,2]
[374643817,1753396234189,-1098.0,0.000322,2]
[374643818,1753396234198,-2743.57318376,0.000322,2]
[374643819,1753396234210,-436.92907097,0.000322,2]
[374643820,1753396234221,-9557.879672,0.00032209,2]
[374643821,1753396234231,-3180.50225472,0.00032256,2]
[374643822,1753396234240,-886.92711396,0.00032299,2]
[374643823,1753396234252,-5556.62225086,0.00032299,2]
[374643824,1753396234264,-3102.84503003,0.00032299,2]
[374643825,1753396234447,-4659.24370391,0.00032299,2]
[374643831,1753396237566,-631.4442852,0.00032299,2]
[374643832,1753396237580,-1637.96544139,0.00032299,2]
[374643833,1753396237591,-524.22216559,0.00032299,2]
[374643834,1753396237602,-267.32928065,0.00032299,2]
[374643835,1753396237731,-949.13961586,0.00032299,2]
[374644002,1753396239598,-3719.6,0.00032299,2]
[374644181,1753396241609,-98927.83541255,0.00032299,2]
[374644183,1753396241619,-1053.9646,0.000323,2]
[374644185,1753396241628,-3180.50225472,0.00032312,2]
[374644187,1753396241638,-3180.50225472,0.00032368,2]
[374644189,1753396241647,-352.55048638,0.0003238,5]
[374644191,1753396241656,-352.55048637,0.00032384,5]
[374644193,1753396241666,-1000.0,0.00032388,2]
[374644195,1753396241677,-163.95999558,0.00032388,2]
[374644197,1753396241687,-352.55048637,0.00032388,5]
[374644199,1753396241696,-1000.0,0.00032389,2]
[374644201,1753396241706,-2500.0,0.00032389,2]
[374644203,1753396241715,-480.36,0.00032397,10]
[374644205,1753396241725,-1564.72,0.00032397,10]
[374644207,1753396241734,-915.98911884,0.00032398,2]
[374644209,1753396241743,-1395.86,0.00032398,10]
[374644211,1753396241753,-1331.94,0.00032398,10]
[374644214,1753396241763,-400.0,0.00032398,2]
[374644215,1753396241772,-400.0,0.00032398,10]
[374644218,1753396241782,-221.74962671,0.00032398,2]
[374644219,1753396241792,-160.0,0.00032398,2]
[374644220,1753396241801,-2136.68,0.00032398,10]
[374644221,1753396241811,-928.03,0.00032398,10]
[374644222,1753396241820,-400.0,0.00032398,2]
[374644223,1753396241830,-501.76949869,0.00032398,10]
[374644224,1753396241839,-1180.95,0.00032398,10]
[374644225,1753396241850,-795.94,0.00032398,10]
[374644226,1753396241860,-2555.71,0.00032398,10]
[374644227,1753396241869,-400.0,0.00032398,10]
[374644228,1753396241878,-400.0,0.00032398,10]
[374644229,1753396241887,-400.0,0.00032398,10]
[374644230,1753396241897,-400.0,0.00032398,10]
[374644231,1753396241907,-702.45,0.00032398,10]
[374644232,1753396241916,-620.92,0.00032398,10]
[374644233,1753396241926,-400.0,0.00032398,10]
[374644234,1753396241935,-1176.71,0.00032398,10]
[374644235,1753396241944,-2099.34,0.00032398,10]
[374644236,1753396241954,-10000.0,0.00032398,2]
[374644237,1753396241964,-34374.6851,0.00032399,2]
[374644238,1753396241973,-5000.0,0.00032399,2]
[374644239,1753396241983,-160.0,0.00032416,2]
[374644240,1753396241992,-3180.50225472,0.00032424,2]
[374644241,1753396242002,-163.95999558,0.00032453,2]
[374644242,1753396242012,-500.0,0.00032473,5]
[374644243,1753396242021,-501.0292411,0.00032473,5]
[374644244,1753396242031,-295.68076164,0.00032473,5]
[374644245,1753396242041,-501.48078725,0.00032473,5]
[374644246,1753396242050,-500.0,0.00032473,5]
[374644247,1753396242060,-500.0,0.00032473,5]
[374644248,1753396242070,-500.0,0.00032473,5]
[374644249,1753396242079,-500.0,0.00032473,5]
[374644250,1753396242089,-500.0,0.00032473,5]
[374644251,1753396242099,-479.52363615,0.00032473,5]
[374644252,1753396242110,-500.0,0.00032473,5]
[374644253,1753396242119,-500.0,0.00032473,2]
[374644254,1753396242129,-500.0,0.00032473,5]
[374644255,1753396242140,-500.0,0.00032473,5]
[374644256,1753396242150,-480.36,0.00032477,10]
[374644257,1753396242160,-1564.72,0.00032477,10]
[374644258,1753396242170,-8171.92102373,0.00032477,2]
[374644259,1753396242179,-154032.001415,0.00032478,2]
[374644260,1753396242189,-163438.420475,0.00032478,2]
[374644261,1753396242199,-400.0,0.00032478,10]
[374644262,1753396242209,-400.0,0.00032478,10]
[374644263,1753396242220,-400.0,0.00032478,10]
[374644264,1753396242229,-400.0,0.00032478,10]
[374644265,1753396242239,-400.0,0.00032478,10]
[374644266,1753396242248,-400.0,0.00032478,10]
[374644267,1753396242258,-400.0,0.00032478,10]
[374644269,1753396242268,-400.0,0.00032478,10]
[374644271,1753396242280,-961.58,0.00032478,10]
[374644273,1753396242291,-400.0,0.00032478,10]
[374644275,1753396242301,-400.0,0.00032478,10]
[374644276,1753396242310,-400.0,0.00032478,10]
[374644277,1753396242321,-400.0,0.00032478,10]
[374644278,1753396242331,-289.86997248,0.00032478,10]
[374644279,1753396242341,-400.0,0.00032478,10]
[374644280,1753396242351,-542.02,0.00032478,10]
[374644281,1753396242361,-400.0,0.00032478,10]
[374644283,1753396242371,-824.39,0.00032478,10]
[374644286,1753396242381,-961.85,0.00032478,10]
[374644288,1753396242390,-692.39,0.00032478,10]
[374644290,1753396242399,-457.95,0.00032478,10]
[374644292,1753396242409,-2774.91,0.00032478,10]
[374644294,1753396242421,-1900.35,0.00032478,10]
[374644296,1753396242431,-5187.5,0.00032478,10]
[374644298,1753396242441,-690.73,0.00032478,10]
[374644300,1753396242450,-2525.68,0.00032478,10]
[374644303,1753396242461,-487.86971847,0.00032478,10]
[374644304,1753396242471,-3538.29,0.00032478,10]
[374644307,1753396242480,-5228.6,0.00032478,10]
[374644308,1753396242490,-400.0,0.00032478,10]
[374644309,1753396242500,-4258.75,0.00032478,10]
[374644310,1753396242509,-610.84,0.00032478,10]
[374644311,1753396242519,-400.0,0.00032478,10]
[374644313,1753396242529,-400.0,0.00032478,10]
[374644315,1753396242539,-5018.93,0.00032478,10]
[374644317,1753396242549,-14221.29,0.00032478,10]
[374644320,1753396242559,-2261.47,0.00032478,10]
[374644321,1753396242568,-400.0,0.00032478,10]
[374644322,1753396242955,-4184.33,0.00032478,10]
[374644323,1753396242991,-2807.41,0.00032478,10]
[374644324,1753396243001,-1395.86,0.00032478,10]
[374644325,1753396243011,-3144.84,0.00032478,10]
[374644327,1753396243020,-1108.12,0.00032478,10]
[374644329,1753396243030,-1331.94,0.00032478,10]
[374644331,1753396243040,-4068.12,0.00032478,10]
[374644333,1753396243050,-413.82,0.00032478,2]
[374644335,1753396243059,-2136.68,0.00032478,10]
[374644337,1753396243068,-928.03,0.00032478,10]
[374644338,1753396243078,-929.18,0.00032478,10]
[374644339,1753396243088,-1180.95,0.00032478,10]
[374644340,1753396243099,-400.0,0.00032478,10]
[374644341,1753396243108,-9079.12,0.00032478,10]
[374644342,1753396243118,-795.94,0.00032478,10]
[374644343,1753396243127,-2555.71,0.00032478,10]
[374644344,1753396243137,-400.0,0.00032478,10]
[374644345,1753396243146,-400.0,0.00032478,10]
[374644346,1753396243156,-400.0,0.00032478,10]
[374644347,1753396243166,-5514.4,0.00032478,10]
[374644348,1753396243175,-400.0,0.00032478,10]
[374644349,1753396243185,-480.36,0.00032478,10]
[374644350,1753396243195,-702.45,0.00032478,10]
[374644351,1753396243204,-620.92,0.00032478,10]
[374644352,1753396243214,-3942.38,0.00032478,10]
[374644353,1753396243223,-3471.33,0.00032478,10]
[374644354,1753396243233,-400.0,0.00032478,10]
[374644355,1753396243243,-1564.72,0.00032478,10]
[374644356,1753396243252,-1176.71,0.00032478,10]
[374644357,1753396243262,-2099.34,0.00032478,10]
[374644358,1753396243271,-64180.0005895,0.00032479,2]
[374644359,1753396243285,-65375.3681898,0.00032479,2]
[374644360,1753396243294,-3180.50225472,0.0003248,2]
[374644361,1753396243305,-8171.92102373,0.00032486,2]
[374644362,1753396243314,-480.36,0.00032486,10]
[374644363,1753396243325,-1564.72,0.00032486,10]
[374644364,1753396243334,-89852.0008254,0.00032487,2]
[374644365,1753396243343,-32687.6840949,0.00032487,2]
[374644366,1753396243354,-293.00357447,0.00032487,10]
[374644367,1753396243363,-400.0,0.00032487,10]
[374644368,1753396243373,-522.44257657,0.00032487,10]
[374644369,1753396243382,-483.31839452,0.00032487,10]
[374644370,1753396243392,-400.0,0.00032487,10]
[374644371,1753396243402,-400.0,0.00032487,10]
[374644372,1753396243412,-400.0,0.00032487,10]
[374644373,1753396243421,-400.0,0.00032487,10]
[374644374,1753396243430,-400.0,0.00032487,10]
[374644375,1753396243439,-400.0,0.00032487,10]
[374644376,1753396243449,-400.0,0.00032487,10]
[374644377,1753396243459,-157.59379199,0.00032487,10]
[374644378,1753396243468,-400.0,0.00032487,10]
[374644379,1753396243478,-542.02,0.00032487,10]
[374644380,1753396243488,-504.95197778,0.00032487,10]
[374644381,1753396243497,-824.39,0.00032487,10]
[374644382,1753396243507,-961.85,0.00032487,10]
[374644383,1753396243516,-692.39,0.00032487,10]
[374644384,1753396243525,-457.95,0.00032487,10]
[374644385,1753396243534,-2774.91,0.00032487,10]
[374644386,1753396243544,-1900.35,0.00032487,10]
[374644387,1753396243554,-5187.5,0.00032487,10]
[374644388,1753396243564,-690.73,0.00032487,10]
[374644389,1753396243573,-2525.68,0.00032487,10]
[374644390,1753396243583,-3538.29,0.00032487,10]
[374644391,1753396243592,-5228.6,0.00032487,10]
[374644392,1753396243602,-400.0,0.00032487,10]
[374644393,1753396243611,-4258.75,0.00032487,10]
[374644394,1753396243621,-610.84,0.00032487,10]
[374644395,1753396243630,-400.0,0.00032487,10]
[374644396,1753396243640,-400.0,0.00032487,10]
[374644397,1753396243649,-5018.93,0.00032487,10]
[374644398,1753396243658,-14221.29,0.00032487,10]
[374644399,1753396243668,-2261.47,0.00032487,10]
[374644401,1753396243677,-462.38919143,0.00032487,10]
[374644402,1753396243687,-4184.33,0.00032487,10]
[374644403,1753396243696,-2807.41,0.00032487,10]
[374644404,1753396243705,-1395.86,0.00032487,10]
[374644405,1753396243715,-3144.84,0.00032487,10]
[374644406,1753396243725,-1108.12,0.00032487,10]
[374644407,1753396243734,-1331.94,0.00032487,10]
[374644408,1753396243744,-4068.12,0.00032487,10]
[374644409,1753396243753,-2136.68,0.00032487,10]
[374644410,1753396243763,-928.03,0.00032487,10]
[374644411,1753396243772,-929.18,0.00032487,10]
[374644412,1753396243782,-1180.95,0.00032487,10]
[374644413,1753396243791,-400.0,0.00032487,10]
[374644414,1753396243800,-9079.12,0.00032487,10]
[374644415,1753396243810,-795.94,0.00032487,10]
[374644416,1753396243821,-2555.71,0.00032487,10]
[374644417,1753396243830,-400.0,0.00032487,10]
[374644418,1753396243840,-400.0,0.00032487,10]
[374644419,1753396243850,-400.0,0.00032487,10]
[374644420,1753396243860,-5514.4,0.00032487,10]
[374644421,1753396243869,-400.0,0.00032487,10]
[374644422,1753396243878,-480.36,0.00032487,10]
[374644423,1753396243887,-702.45,0.00032487,10]
[374644424,1753396243896,-620.92,0.00032487,10]
[374644425,1753396243905,-3942.38,0.00032487,10]
[374644426,1753396243914,-3471.33,0.00032487,10]
[374644427,1753396243922,-400.0,0.00032487,10]
[374644428,1753396243931,-1176.71,0.00032487,10]
[374644429,1753396243940,-2099.34,0.00032487,10]
[374644430,1753396243949,-1564.72,0.00032487,10]
[374644431,1753396243957,-1066.08535744,0.00032488,15]
[374644432,1753396243966,-400.0,0.00032488,10]
[374644433,1753396243974,-400.0,0.00032488,10]
[374644434,1753396243983,-400.0,0.00032488,10]
[374644435,1753396243992,-400.0,0.00032488,10]
[374644436,1753396244001,-400.0,0.00032488,10]
[374644437,1753396244010,-203.2455957,0.00032488,10]
[374644438,1753396244019,-400.0,0.00032488,10]
[374644439,1753396244028,-400.0,0.00032488,10]
[374644440,1753396244037,-544.09,0.00032488,10]
[374644441,1753396244046,-2897.36,0.00032488,10]
[374644442,1753396244056,-502.16145934,0.00032488,10]
[374644443,1753396244064,-400.0,0.00032488,10]
[374644444,1753396244074,-400.0,0.00032488,10]
[374644445,1753396244083,-2434.46,0.00032488,10]
[374644446,1753396244092,-400.0,0.00032488,10]
[374644447,1753396244101,-400.0,0.00032488,10]
[374644448,1753396244109,-400.0,0.00032488,10]
[374644449,1753396244118,-400.0,0.00032488,10]
[374644450,1753396244127,-583.63,0.00032488,10]
[374644451,1753396244137,-400.0,0.00032488,10]
[374644452,1753396244146,-400.0,0.00032488,10]
[374644453,1753396244155,-872.24,0.00032488,10]
[374644454,1753396244162,-400.0,0.00032488,10]
[374644455,1753396244169,-400.0,0.00032488,10]
[374644456,1753396244176,-513.86,0.00032488,10]
[374644457,1753396244183,-400.0,0.00032488,10]
[374644459,1753396244190,-400.0,0.00032488,10]
[374644460,1753396244197,-400.0,0.00032488,10]
[374644462,1753396244204,-400.0,0.00032488,10]
[374644463,1753396244211,-400.0,0.00032488,10]
[374644464,1753396244217,-1512.64,0.00032488,10]
[374644465,1753396244224,-400.0,0.00032488,10]
[374644466,1753396244231,-400.0,0.00032488,10]
[374644468,1753396244238,-588.25,0.00032488,10]
[374644469,1753396244245,-400.0,0.00032488,10]
[374644470,1753396244252,-2503.61,0.00032488,10]
[374644471,1753396244259,-400.0,0.00032488,10]
[374644472,1753396244265,-400.0,0.00032488,10]
[374644473,1753396244273,-400.0,0.00032488,10]
[374644474,1753396244284,-400.0,0.00032488,10]
[374644475,1753396244293,-2640.22,0.00032488,10]
[374644476,1753396244302,-400.0,0.00032488,10]
[374644477,1753396244312,-400.0,0.00032488,10]
[374644478,1753396244323,-400.0,0.00032488,10]
[374644479,1753396244333,-400.0,0.00032488,10]
[374644480,1753396244342,-1344.89,0.00032488,10]
[374644481,1753396244352,-400.0,0.00032488,10]
[374644482,1753396244362,-400.0,0.00032488,10]
[374644483,1753396244372,-400.0,0.00032488,10]
[374644484,1753396244381,-701.75,0.00032488,10]
[374644485,1753396244391,-400.0,0.00032488,10]
[374644486,1753396244401,-400.0,0.00032488,10]
[374644487,1753396244411,-1728.07,0.00032488,10]
[374644488,1753396244421,-1863.16,0.00032488,10]
[374644489,1753396244431,-400.0,0.00032488,10]
[374644490,1753396244440,-400.0,0.00032488,10]
[374644491,1753396244450,-2932.0,0.00032488,10]
[374644492,1753396244459,-400.0,0.00032488,10]
[374644493,1753396244470,-461.33354908,0.00032488,10]
[374644494,1753396244479,-1735.32,0.00032488,10]
[374644495,1753396244489,-400.0,0.00032488,10]
[374644496,1753396244499,-981.37,0.00032488,10]
[374644497,1753396244509,-400.0,0.00032488,10]
[374644498,1753396244518,-400.0,0.00032488,10]
[374644499,1753396244528,-1408.65,0.00032488,10]
[374644500,1753396244538,-400.0,0.00032488,10]
[374644501,1753396244547,-400.0,0.00032488,10]
[374644502,1753396244557,-1482.09,0.00032488,10]
[374644503,1753396244566,-400.0,0.00032488,10]
[374644504,1753396244575,-686.04,0.00032488,10]
[374644505,1753396244585,-2600.09,0.00032488,10]
[374644506,1753396244595,-400.0,0.00032488,10]
[374644507,1753396244604,-2192.67,0.00032488,10]
[374644508,1753396244614,-400.0,0.00032488,10]
[374644509,1753396244624,-400.0,0.00032488,10]
[374644510,1753396244633,-541.04,0.00032488,10]
[374644511,1753396244643,-400.0,0.00032488,10]
[374644512,1753396244652,-400.0,0.00032488,10]
[374644513,1753396244662,-400.0,0.00032488,10]
[374644514,1753396244672,-400.0,0.00032488,10]
[374644515,1753396244681,-400.0,0.00032488,10]
[374644516,1753396244691,-1071.41,0.00032488,10]
[374644517,1753396244701,-400.0,0.00032488,10]
[374644518,1753396244711,-400.0,0.00032488,10]
[374644519,1753396244720,-400.0,0.00032488,10]
[374644520,1753396244730,-461.33853907,0.00032488,10]
[374644521,1753396244739,-2817.76,0.00032488,10]
[374644522,1753396244750,-2217.29,0.00032488,10]
[374644523,1753396244759,-219.32726836,0.00032488,10]
[374644524,1753396244769,-400.0,0.00032488,10]
[374644525,1753396244778,-1350.03,0.00032488,10]
[374644526,1753396244788,-815.35,0.00032488,10]
[374644527,1753396244798,-400.0,0.00032488,10]
[374644528,1753396244807,-400.0,0.00032488,10]
[374644529,1753396244817,-400.0,0.00032488,10]
[374644530,1753396244826,-400.0,0.00032488,10]
[374644531,1753396244836,-1164.68,0.00032488,10]
[374644532,1753396244845,-751.82,0.00032488,10]
[374644533,1753396244855,-400.0,0.00032488,10]
[374644534,1753396244864,-2669.46,0.00032488,10]
[374644535,1753396244874,-400.0,0.00032488,10]
[374644536,1753396244884,-3105.62,0.00032488,10]
[374644537,1753396244893,-400.0,0.00032488,10]
[374644538,1753396244903,-400.0,0.00032488,10]
[374644539,1753396244913,-950.52,0.00032488,10]
[374644540,1753396244922,-451.41223491,0.00032488,10]
[374644541,1753396244932,-400.0,0.00032488,10]
[374644542,1753396244941,-1254.97,0.00032488,10]
[374644543,1753396244951,-400.0,0.00032488,10]
[374644544,1753396244960,-400.0,0.00032488,10]
[374644545,1753396244970,-1170.51,0.00032488,10]
[374644546,1753396244980,-400.0,0.00032488,10]
[374644547,1753396244990,-400.0,0.00032488,10]
[374644548,1753396244999,-480.9008621,0.00032488,10]